[Event "Gibraltar Masters 18th"]
[Site "Gibraltar"]
[Date "2020.01.24"]
[Round "4.48"]
[White "Lujan, Carolina"]
[Black "Quintiliano Pinto, Renato R"]
[Result "1/2-1/2"]
[ECO "B92"]
[WhiteElo "2330"]
[BlackElo "2471"]
[PlyCount "84"]
[EventDate "2020.01.21"]
[EventType "swiss"]
[EventRounds "10"]
[EventCountry "GGB"]
[SourceTitle "BritBase"]
[Source "John Saunders"]
[SourceDate "2021.06.05"]
[SourceVersion "1"]
[SourceVersionDate "2021.06.05"]
[SourceQuality "1"]
[TimeControl "40/100:0"]
[WhiteClock "0:01:55"]
[BlackClock "0:01:40"]

1. e4 {[%emt 0:00:00]} c5 {[%emt 0:00:00]} 2. Nf3 {[%emt 0:00:00]} d6 {[%emt 0:
00:00]} 3. d4 {[%emt 0:00:00]} cxd4 {[%emt 0:00:00]} 4. Nxd4 {[%emt 0:00:00]}
Nf6 {[%emt 0:00:00]} 5. Nc3 {[%emt 0:00:00]} a6 {[%emt 0:00:00]} 6. Be3 {
[%emt 0:00:00]} e5 {[%emt 0:00:00]} 7. Nb3 {[%emt 0:00:00]} Be6 {[%emt 0:00:00]
} 8. Be2 {[%emt 0:00:00]} Be7 {[%emt 0:00:00]} 9. O-O {[%emt 0:00:00]} O-O {
[%emt 0:00:00]} 10. Qd2 {[%emt 0:00:00]} Nbd7 {[%emt 0:00:00]} 11. a4 {[%emt 0:
00:00]} Rc8 {[%emt 0:00:00]} 12. a5 {[%emt 0:00:00]} Qc7 {[%emt 0:00:00]} 13.
Rfc1 {[%emt 0:00:00]} Qc6 {[%emt 0:00:00]} 14. Bf3 {[%emt 0:00:00]} Rfd8 {
[%emt 0:00:00]} 15. Nd5 {[%emt 0:00:00]} Bxd5 {[%emt 0:00:00]} 16. exd5 {
[%emt 0:00:00]} Qc4 {[%emt 0:00:00]} 17. Qd1 {[%emt 0:00:00]} Qb5 {[%emt 0:00:
00]} 18. Nd2 {[%emt 0:00:00]} Qxb2 {[%emt 0:00:00]} 19. c4 {[%emt 0:00:00]} e4
{[%emt 0:00:00]} 20. Nxe4 {[%emt 0:00:00]} Nxe4 {[%emt 0:00:00]} 21. Bxe4 {
[%emt 0:00:00]} Qe5 {[%emt 0:00:00]} 22. Qd3 {[%emt 0:00:00]} Qh5 {[%emt 0:00:
00]} 23. Bf5 {[%emt 0:00:00]} g6 {[%emt 0:00:00]} 24. Bxd7 {[%emt 0:00:00]}
Rxd7 {[%emt 0:00:00]} 25. Qe4 {[%emt 0:00:00]} Bf6 {[%emt 0:00:00]} 26. Rab1 {
[%emt 0:00:00]} Re7 {[%emt 0:00:00]} 27. Qd3 {[%emt 0:00:00]} Bg5 {[%emt 0:00:
00]} 28. f4 {[%emt 0:00:00]} Rce8 {[%emt 0:00:00]} 29. Bd2 {[%emt 0:00:00]} Re2
{[%emt 0:00:00]} 30. Rf1 {[%emt 0:00:00]} Qg4 {[%emt 0:00:00]} 31. Qf3 {
[%emt 0:00:00]} Qxf3 {[%emt 0:00:00]} 32. Rxf3 {[%emt 0:00:00]} Rxd2 {[%emt 0:
00:00]} 33. fxg5 {[%emt 0:00:00]} Ree2 {[%emt 0:00:00]} 34. Rg3 {[%emt 0:00:00]
} Re4 {[%emt 0:00:07]} 35. h3 {[%emt 0:00:00]} Rxc4 {[%emt 0:00:00]} 36. Rxb7 {
[%emt 0:00:00]} Rxd5 {[%emt 0:00:19]} 37. Rf3 {[%emt 0:00:00]} Rxg5 {[%emt 0:
00:00]} 38. Rfxf7 {[%emt 0:00:00]} Rc1+ {[%emt 0:00:00]} 39. Kf2 {[%emt 0:00:
00]} Rf5+ {[%emt 0:00:30]} 40. Rxf5 {[%emt 0:00:00]} gxf5 {[%emt 0:00:00]} 41.
Rb6 {[%emt 0:01:49]} Rc5 {[%emt 0:01:09]} 42. Rxa6 {[%emt 0:00:00]} Kf7 {
[%emt 0:00:00]} 1/2-1/2

[Event "Gibraltar Masters 18th"]
[Site "Gibraltar"]
[Date "2020.01.24"]
[Round "4.49"]
[White "Garrido Outon, Alex"]
[Black "Ravi, Teja S"]
[Result "0-1"]
[ECO "B11"]
[WhiteElo "2287"]
[BlackElo "2464"]
[PlyCount "100"]
[EventDate "2020.01.21"]
[EventType "swiss"]
[EventRounds "10"]
[EventCountry "GGB"]
[SourceTitle "BritBase"]
[Source "John Saunders"]
[SourceDate "2021.06.05"]
[SourceVersion "1"]
[SourceVersionDate "2021.06.05"]
[SourceQuality "1"]
[TimeControl "40/100:0"]
[WhiteClock "0:12:30"]
[BlackClock "0:49:09"]

1. e4 {[%emt 0:00:00]} c6 {[%emt 0:00:00]} 2. Nc3 {[%emt 0:00:00]} d5 {[%emt 0:
00:00]} 3. Nf3 {[%emt 0:00:00]} dxe4 {[%emt 0:00:00]} 4. Nxe4 {[%emt 0:00:00]}
Nf6 {[%emt 0:00:00]} 5. Qe2 {[%emt 0:00:00]} Nxe4 {[%emt 0:00:00]} 6. Qxe4 {
[%emt 0:00:00]} Be6 {[%emt 0:00:00]} 7. b3 {[%emt 0:00:00]} Nd7 {[%emt 0:00:00]
} 8. Bb2 {[%emt 0:00:00]} Nf6 {[%emt 0:00:00]} 9. Qe2 {[%emt 0:00:00]} Bg4 {
[%emt 0:00:00]} 10. h3 {[%emt 0:00:00]} Bxf3 {[%emt 0:00:00]} 11. Qxf3 {
[%emt 0:00:00]} Qd5 {[%emt 0:00:00]} 12. Be2 {[%emt 0:00:00]} e6 {[%emt 0:00:
00]} 13. Qxd5 {[%emt 0:00:00]} Nxd5 {[%emt 0:00:00]} 14. O-O {[%emt 0:00:00]}
O-O-O {[%emt 0:00:00]} 15. d3 {[%emt 0:00:00]} Rg8 {[%emt 0:00:00]} 16. Bf3 {
[%emt 0:00:00]} Nb4 {[%emt 0:00:00]} 17. Rfc1 {[%emt 0:00:00]} Bc5 {[%emt 0:00:
00]} 18. a3 {[%emt 0:00:00]} Na6 {[%emt 0:00:00]} 19. Rd1 {[%emt 0:00:00]} Bd4
{[%emt 0:00:00]} 20. Bxd4 {[%emt 0:00:00]} Rxd4 {[%emt 0:00:00]} 21. c3 {
[%emt 0:00:00]} Rd6 {[%emt 0:00:00]} 22. d4 {[%emt 0:00:00]} Nc7 {[%emt 0:00:
00]} 23. b4 {[%emt 0:00:00]} Nd5 {[%emt 0:00:00]} 24. Rdc1 {[%emt 0:00:00]} Kc7
{[%emt 0:00:00]} 25. Rab1 {[%emt 0:00:00]} Nb6 {[%emt 0:00:00]} 26. b5 {
[%emt 0:00:00]} Re8 {[%emt 0:00:00]} 27. a4 {[%emt 0:00:00]} Nd7 {[%emt 0:00:
00]} 28. Rb4 {[%emt 0:00:00]} Rc8 {[%emt 0:00:00]} 29. bxc6 {[%emt 0:00:00]}
bxc6 {[%emt 0:00:00]} 30. Rcb1 {[%emt 0:00:00]} Rb8 {[%emt 0:00:00]} 31. Rxb8 {
[%emt 0:00:00]} Nxb8 {[%emt 0:00:00]} 32. a5 {[%emt 0:00:00]} Rd8 {[%emt 0:00:
00]} 33. Rb4 {[%emt 0:00:00]} Nd7 {[%emt 0:00:00]} 34. Rc4 {[%emt 0:00:00]} c5
{[%emt 0:00:00]} 35. dxc5 {[%emt 0:00:00]} Ne5 {[%emt 0:00:00]} 36. Rd4 {
[%emt 0:00:00]} Nxf3+ {[%emt 0:00:00]} 37. gxf3 {[%emt 0:00:00]} Rxd4 {[%emt 0:
00:00]} 38. cxd4 {[%emt 0:00:00]} Kc6 {[%emt 0:00:00]} 39. f4 {[%emt 0:00:00]}
Kb5 {[%emt 0:00:00]} 40. Kf1 {[%emt 0:00:00]} Kxa5 {[%emt 0:00:00]} 41. Ke2 {
[%emt 0:00:00]} Kb5 {[%emt 0:00:00]} 42. Kd3 {[%emt 0:00:00]} h6 {[%emt 0:00:
00]} 43. h4 {[%emt 0:00:00]} a5 {[%emt 0:00:00]} 44. Ke3 {[%emt 0:00:00]} g6 {
[%emt 0:00:00]} 45. Ke4 {[%emt 0:00:00]} a4 {[%emt 0:00:00]} 46. Kd3 {[%emt 0:
00:00]} f6 {[%emt 0:00:00]} 47. Kc2 {[%emt 0:00:00]} g5 {[%emt 0:00:00]} 48.
hxg5 {[%emt 0:00:00]} hxg5 {[%emt 0:00:00]} 49. fxg5 {[%emt 0:00:00]} fxg5 {
[%emt 0:00:00]} 50. Kd3 {[%emt 0:00:00]} g4 {[%emt 0:00:00]} 0-1

[Event "Gibraltar Masters 18th"]
[Site "Gibraltar"]
[Date "2020.01.24"]
[Round "4.50"]
[White "Vega Gutierrez, Sabrina"]
[Black "Tregubov, Pavel V"]
[Result "1/2-1/2"]
[ECO "E01"]
[WhiteElo "2364"]
[BlackElo "2588"]
[PlyCount "88"]
[EventDate "2020.01.21"]
[EventType "swiss"]
[EventRounds "10"]
[EventCountry "GGB"]
[SourceTitle "BritBase"]
[Source "John Saunders"]
[SourceDate "2021.06.05"]
[SourceVersion "1"]
[SourceVersionDate "2021.06.05"]
[SourceQuality "1"]
[TimeControl "40/100:0"]
[WhiteClock "0:36:41"]
[BlackClock "0:02:19"]

1. d4 {[%emt 0:00:00]} Nf6 {[%emt 0:00:00]} 2. c4 {[%emt 0:00:00]} e6 {[%emt 0:
00:00]} 3. Nf3 {[%emt 0:00:00]} Nc6 {[%emt 0:00:00]} 4. g3 {[%emt 0:00:00]} d5
{[%emt 0:00:00]} 5. cxd5 {[%emt 0:00:00]} exd5 {[%emt 0:00:00]} 6. Bg2 {
[%emt 0:00:00]} Bd6 {[%emt 0:00:00]} 7. Nc3 {[%emt 0:00:00]} h6 {[%emt 0:00:00]
} 8. O-O {[%emt 0:00:00]} a6 {[%emt 0:00:00]} 9. Nh4 {[%emt 0:00:00]} Ne7 {
[%emt 0:00:00]} 10. e4 {[%emt 0:00:00]} dxe4 {[%emt 0:00:00]} 11. Nxe4 {
[%emt 0:00:00]} Nxe4 {[%emt 0:00:00]} 12. Bxe4 {[%emt 0:00:00]} O-O {[%emt 0:
00:00]} 13. Bc2 {[%emt 0:00:00]} Nd5 {[%emt 0:00:00]} 14. Qd3 {[%emt 0:00:00]}
Nf6 {[%emt 0:00:00]} 15. Nf5 {[%emt 0:00:00]} Re8 {[%emt 0:00:00]} 16. Nxd6 {
[%emt 0:00:00]} cxd6 {[%emt 0:00:00]} 17. Bf4 {[%emt 0:00:00]} Bh3 {[%emt 0:00:
00]} 18. Rfd1 {[%emt 0:00:00]} Rc8 {[%emt 0:00:00]} 19. Ba4 {[%emt 0:00:00]}
Bd7 {[%emt 0:00:00]} 20. Bb3 {[%emt 0:00:00]} Bb5 {[%emt 0:00:00]} 21. Qf5 {
[%emt 0:00:00]} Bd7 {[%emt 0:00:00]} 22. Qd3 {[%emt 0:00:00]} Bb5 {[%emt 0:00:
00]} 23. Qf5 {[%emt 0:00:00]} Bc4 {[%emt 0:00:00]} 24. Bxc4 {[%emt 0:00:00]}
Rxc4 {[%emt 0:00:00]} 25. Rac1 {[%emt 0:00:00]} Rxc1 {[%emt 0:00:00]} 26. Rxc1
{[%emt 0:00:00]} Qb6 {[%emt 0:00:00]} 27. Qc2 {[%emt 0:00:00]} Qxd4 {[%emt 0:
00:00]} 28. Rd1 {[%emt 0:00:00]} Qc5 {[%emt 0:00:00]} 29. Qb3 {[%emt 0:00:00]}
d5 {[%emt 0:00:00]} 30. Be3 {[%emt 0:00:00]} Qc6 {[%emt 0:00:00]} 31. Bd4 {
[%emt 0:00:00]} Ne4 {[%emt 0:00:00]} 32. Be3 {[%emt 0:00:00]} Nf6 {[%emt 0:00:
00]} 33. Bd4 {[%emt 0:00:00]} Ne4 {[%emt 0:00:39]} 34. Be3 {[%emt 0:00:00]} Rd8
{[%emt 0:00:00]} 35. Rc1 {[%emt 0:00:00]} Qd7 {[%emt 0:00:00]} 36. Bb6 {
[%emt 0:00:00]} Re8 {[%emt 0:00:00]} 37. Rd1 {[%emt 0:00:00]} Qc6 {[%emt 0:00:
00]} 38. Be3 {[%emt 0:00:51]} Rd8 {[%emt 0:00:13]} 39. Rc1 {[%emt 0:00:00]} Qd7
{[%emt 0:00:03]} 40. Bb6 {[%emt 0:00:00]} Re8 {[%emt 0:00:00]} 41. Rd1 {
[%emt 0:01:22]} Re5 {[%emt 0:00:00]} 42. Bd4 {[%emt 0:00:00]} Rh5 {[%emt 0:00:
00]} 43. Qf3 {[%emt 0:00:00]} Rg5 {[%emt 0:00:00]} 44. Bxg7 {[%emt 0:00:00]}
Kxg7 {[%emt 0:00:06]} 1/2-1/2

[Event "Gibraltar Masters 18th"]
[Site "Gibraltar"]
[Date "2020.01.24"]
[Round "4.51"]
[White "Studer, Noel"]
[Black "Mullick, Raahil"]
[Result "1-0"]
[ECO "D12"]
[WhiteElo "2546"]
[BlackElo "2382"]
[PlyCount "143"]
[EventDate "2020.01.21"]
[EventType "swiss"]
[EventRounds "10"]
[EventCountry "GGB"]
[SourceTitle "BritBase"]
[Source "John Saunders"]
[SourceDate "2021.06.05"]
[SourceVersion "1"]
[SourceVersionDate "2021.06.05"]
[SourceQuality "1"]
[TimeControl "40/100:0"]
[WhiteClock "0:10:55"]
[BlackClock "0:00:48"]

1. d4 {[%emt 0:00:00]} d5 {[%emt 0:00:00]} 2. c4 {[%emt 0:00:00]} c6 {[%emt 0:
00:00]} 3. Nf3 {[%emt 0:00:00]} Nf6 {[%emt 0:00:00]} 4. e3 {[%emt 0:00:00]} Bf5
{[%emt 0:00:00]} 5. Nc3 {[%emt 0:00:00]} e6 {[%emt 0:00:00]} 6. Nh4 {[%emt 0:
00:00]} Be4 {[%emt 0:00:00]} 7. f3 {[%emt 0:00:00]} Bg6 {[%emt 0:00:00]} 8. Qb3
{[%emt 0:00:00]} Qc7 {[%emt 0:00:00]} 9. Bd2 {[%emt 0:00:00]} a6 {[%emt 0:00:
00]} 10. g3 {[%emt 0:00:00]} dxc4 {[%emt 0:00:00]} 11. Bxc4 {[%emt 0:00:00]} b5
{[%emt 0:00:00]} 12. Be2 {[%emt 0:00:00]} c5 {[%emt 0:00:00]} 13. dxc5 {
[%emt 0:00:00]} Nbd7 {[%emt 0:00:00]} 14. Nxg6 {[%emt 0:00:00]} hxg6 {[%emt 0:
00:00]} 15. c6 {[%emt 0:00:00]} Nc5 {[%emt 0:00:00]} 16. Qc2 {[%emt 0:00:00]}
Bd6 {[%emt 0:00:00]} 17. f4 {[%emt 0:00:00]} b4 {[%emt 0:00:00]} 18. Nd1 {
[%emt 0:00:00]} Qxc6 {[%emt 0:00:00]} 19. O-O {[%emt 0:00:00]} Qb6 {[%emt 0:00:
00]} 20. b3 {[%emt 0:00:00]} Nce4 {[%emt 0:00:00]} 21. Bf3 {[%emt 0:00:00]}
Nxd2 {[%emt 0:00:00]} 22. Qxd2 {[%emt 0:00:00]} Rd8 {[%emt 0:00:00]} 23. Qe2 {
[%emt 0:00:00]} Bc5 {[%emt 0:00:00]} 24. Kh1 {[%emt 0:00:00]} O-O {[%emt 0:00:
00]} 25. Nb2 {[%emt 0:00:00]} Qb5 {[%emt 0:00:00]} 26. Nc4 {[%emt 0:00:00]} Nd5
{[%emt 0:00:00]} 27. e4 {[%emt 0:00:00]} Nc3 {[%emt 0:00:00]} 28. Qg2 {[%emt 0:
00:00]} Bd4 {[%emt 0:00:00]} 29. e5 {[%emt 0:00:00]} Bc5 {[%emt 0:00:00]} 30.
Rae1 {[%emt 0:00:00]} Rd4 {[%emt 0:00:00]} 31. Bc6 {[%emt 0:00:00]} Qb8 {
[%emt 0:00:00]} 32. g4 {[%emt 0:00:00]} Qd8 {[%emt 0:00:00]} 33. f5 {[%emt 0:
00:00]} Qh4 {[%emt 0:00:00]} 34. Bf3 {[%emt 0:00:00]} gxf5 {[%emt 0:00:00]} 35.
gxf5 {[%emt 0:00:00]} exf5 {[%emt 0:00:00]} 36. Ne3 {[%emt 0:00:00]} Rf4 {
[%emt 0:00:00]} 37. Nd5 {[%emt 0:00:00]} Nxd5 {[%emt 0:00:00]} 38. Bxd5 {
[%emt 0:00:00]} Rg4 {[%emt 0:00:00]} 39. Qc2 {[%emt 0:00:00]} Qe7 {[%emt 0:00:
00]} 40. Qxf5 {[%emt 0:00:00]} Rg5 {[%emt 0:00:00]} 41. Qe4 {[%emt 0:00:00]} g6
{[%emt 0:00:00]} 42. Bc4 {[%emt 0:00:00]} Kg7 {[%emt 0:00:00]} 43. Rf4 {
[%emt 0:00:00]} a5 {[%emt 0:00:00]} 44. Qd5 {[%emt 0:00:00]} Rh5 {[%emt 0:00:
00]} 45. Rf6 {[%emt 0:00:00]} Kh8 {[%emt 0:00:00]} 46. Qe4 {[%emt 0:00:00]} Rd8
{[%emt 0:00:00]} 47. Rxf7 {[%emt 0:00:00]} Rd2 {[%emt 0:00:00]} 48. Qa8+ {
[%emt 0:00:00]} Qd8 {[%emt 0:00:00]} 49. Qxd8+ {[%emt 0:00:00]} Rxd8 {[%emt 0:
00:00]} 50. e6 {[%emt 0:00:00]} Rd2 {[%emt 0:00:00]} 51. Re2 {[%emt 0:00:00]}
Rd1+ {[%emt 0:00:00]} 52. Kg2 {[%emt 0:00:00]} Rg1+ {[%emt 0:00:00]} 53. Kf3 {
[%emt 0:00:00]} Rf1+ {[%emt 0:00:00]} 54. Ke4 {[%emt 0:00:00]} Rxf7 {[%emt 0:
00:00]} 55. exf7 {[%emt 0:00:00]} Kg7 {[%emt 0:00:00]} 56. Rd2 {[%emt 0:00:00]}
Bf8 {[%emt 0:00:00]} 57. Rf2 {[%emt 0:00:00]} Rh4+ {[%emt 0:00:00]} 58. Kd5 {
[%emt 0:00:00]} Rh5+ {[%emt 0:00:00]} 59. Ke6 {[%emt 0:00:00]} Rc5 {[%emt 0:00:
00]} 60. Rf4 {[%emt 0:02:33]} Rc6+ {[%emt 0:00:00]} 61. Kd7 {[%emt 0:00:07]}
Rc5 {[%emt 0:00:00]} 62. Re4 {[%emt 0:00:00]} Rf5 {[%emt 0:00:00]} 63. Re2 {
[%emt 0:00:00]} Rf4 {[%emt 0:00:00]} 64. Be6 {[%emt 0:00:00]} Rh4 {[%emt 0:00:
00]} 65. Rg2 {[%emt 0:00:00]} Rd4+ {[%emt 0:00:00]} 66. Ke8 {[%emt 0:00:00]}
Bc5 {[%emt 0:02:38]} 67. Bf5 {[%emt 0:00:00]} g5 {[%emt 0:00:10]} 68. Rxg5+ {
[%emt 0:00:00]} Kf6 {[%emt 0:00:00]} 69. Rh5 {[%emt 0:00:00]} Bf8 {[%emt 0:00:
00]} 70. Bc2 {[%emt 0:00:00]} Kg7 {[%emt 0:00:00]} 71. Rg5+ {[%emt 0:00:00]}
Kf6 {[%emt 0:00:00]} 72. Rg6+ {[%emt 0:00:00]} 1-0

[Event "Gibraltar Masters 18th"]
[Site "Gibraltar"]
[Date "2020.01.24"]
[Round "4.52"]
[White "Baron, Tal"]
[Black "Gschnitzer, Oswald"]
[Result "1/2-1/2"]
[ECO "A47"]
[WhiteElo "2529"]
[BlackElo "2361"]
[PlyCount "94"]
[EventDate "2020.01.21"]
[EventType "swiss"]
[EventRounds "10"]
[EventCountry "GGB"]
[SourceTitle "BritBase"]
[Source "John Saunders"]
[SourceDate "2021.06.05"]
[SourceVersion "1"]
[SourceVersionDate "2021.06.05"]
[SourceQuality "1"]
[TimeControl "40/100:0"]
[WhiteClock "0:43:00"]
[BlackClock "0:25:23"]

1. d4 {[%emt 0:00:00]} Nf6 {[%emt 0:00:00]} 2. Nf3 {[%emt 0:00:00]} e6 {
[%emt 0:00:00]} 3. Bf4 {[%emt 0:00:00]} c5 {[%emt 0:00:00]} 4. e3 {[%emt 0:00:
00]} b6 {[%emt 0:00:00]} 5. Nbd2 {[%emt 0:00:00]} Be7 {[%emt 0:00:00]} 6. h3 {
[%emt 0:00:00]} Bb7 {[%emt 0:00:00]} 7. Bd3 {[%emt 0:00:00]} Nc6 {[%emt 0:00:
00]} 8. c3 {[%emt 0:00:00]} d5 {[%emt 0:00:00]} 9. Qe2 {[%emt 0:00:00]} O-O {
[%emt 0:00:00]} 10. O-O {[%emt 0:00:00]} Bd6 {[%emt 0:00:00]} 11. Ne5 {[%emt 0:
00:00]} Ne7 {[%emt 0:00:00]} 12. Rad1 {[%emt 0:00:00]} Qc7 {[%emt 0:00:00]} 13.
Rfe1 {[%emt 0:00:00]} Rad8 {[%emt 0:00:00]} 14. Qf3 {[%emt 0:00:00]} Ng6 {
[%emt 0:00:00]} 15. Qg3 {[%emt 0:00:00]} Nh5 {[%emt 0:00:00]} 16. Qg4 {[%emt 0:
00:00]} Nf6 {[%emt 0:00:00]} 17. Qg5 {[%emt 0:00:00]} Nxf4 {[%emt 0:00:00]} 18.
exf4 {[%emt 0:00:00]} Ne4 {[%emt 0:00:00]} 19. Qh5 {[%emt 0:00:00]} g6 {
[%emt 0:00:00]} 20. Qh4 {[%emt 0:00:00]} Be7 {[%emt 0:00:00]} 21. Qh6 {[%emt 0:
00:00]} cxd4 {[%emt 0:00:00]} 22. cxd4 {[%emt 0:00:00]} Bb4 {[%emt 0:00:00]}
23. Bxe4 {[%emt 0:00:00]} dxe4 {[%emt 0:00:00]} 24. Rc1 {[%emt 0:00:00]} Qe7 {
[%emt 0:00:00]} 25. Re2 {[%emt 0:00:00]} Rxd4 {[%emt 0:00:00]} 26. Nb3 {
[%emt 0:00:00]} Rdd8 {[%emt 0:00:00]} 27. Rec2 {[%emt 0:00:00]} Bd6 {[%emt 0:
00:00]} 28. Nd2 {[%emt 0:00:00]} Bb8 {[%emt 0:00:00]} 29. Nf1 {[%emt 0:00:00]}
f6 {[%emt 0:00:00]} 30. Nc6 {[%emt 0:00:00]} Bxc6 {[%emt 0:00:00]} 31. Rxc6 {
[%emt 0:00:00]} Rd5 {[%emt 0:00:00]} 32. Qh4 {[%emt 0:00:00]} Rf5 {[%emt 0:00:
00]} 33. g3 {[%emt 0:00:00]} Bd6 {[%emt 0:00:00]} 34. Qg4 {[%emt 0:00:00]} Rc5
{[%emt 0:00:00]} 35. R1xc5 {[%emt 0:00:00]} bxc5 {[%emt 0:00:00]} 36. Qe2 {
[%emt 0:00:00]} f5 {[%emt 0:00:00]} 37. Ne3 {[%emt 0:00:00]} Qd7 {[%emt 0:00:
22]} 38. Qa6 {[%emt 0:00:00]} Rd8 {[%emt 0:00:17]} 39. Kg2 {[%emt 0:00:00]} Kf7
{[%emt 0:00:17]} 40. h4 {[%emt 0:00:00]} Ke7 {[%emt 0:00:05]} 41. b3 {[%emt 0:
00:00]} Bc7 {[%emt 0:00:00]} 42. Nc4 {[%emt 0:00:00]} e3 {[%emt 0:00:00]} 43.
Nxe3 {[%emt 0:00:00]} Bb6 {[%emt 0:00:00]} 44. Qa4 {[%emt 0:00:00]} Qd4 {
[%emt 0:00:00]} 45. Qc4 {[%emt 0:00:00]} Qd7 {[%emt 0:00:00]} 46. Qa4 {[%emt 0:
00:00]} Qd4 {[%emt 0:00:00]} 47. Qc4 {[%emt 0:00:00]} Qd7 {[%emt 0:00:00]}
1/2-1/2

[Event "Gibraltar Masters 18th"]
[Site "Gibraltar"]
[Date "2020.01.24"]
[Round "4.53"]
[White "Abrahamyan, Tatev"]
[Black "Beliavsky, Alexander G"]
[Result "1/2-1/2"]
[ECO "C87"]
[WhiteElo "2363"]
[BlackElo "2529"]
[PlyCount "141"]
[EventDate "2020.01.21"]
[EventType "swiss"]
[EventRounds "10"]
[EventCountry "GGB"]
[SourceTitle "BritBase"]
[Source "John Saunders"]
[SourceDate "2021.06.05"]
[SourceVersion "1"]
[SourceVersionDate "2021.06.05"]
[SourceQuality "1"]
[TimeControl "40/100:0"]
[WhiteClock "0:05:31"]
[BlackClock "0:47:28"]

1. e4 {[%emt 0:00:00]} e5 {[%emt 0:00:00]} 2. Nf3 {[%emt 0:00:00]} Nc6 {
[%emt 0:00:00]} 3. Bb5 {[%emt 0:00:00]} a6 {[%emt 0:00:00]} 4. Ba4 {[%emt 0:00:
00]} Nf6 {[%emt 0:00:00]} 5. O-O {[%emt 0:00:00]} Be7 {[%emt 0:00:00]} 6. d3 {
[%emt 0:00:00]} d6 {[%emt 0:00:00]} 7. c3 {[%emt 0:00:00]} O-O {[%emt 0:00:00]}
8. Nbd2 {[%emt 0:00:00]} Bg4 {[%emt 0:00:00]} 9. h3 {[%emt 0:00:00]} Bh5 {
[%emt 0:00:00]} 10. Re1 {[%emt 0:00:00]} b5 {[%emt 0:00:00]} 11. Bc2 {[%emt 0:
00:00]} d5 {[%emt 0:00:00]} 12. Nf1 {[%emt 0:00:00]} dxe4 {[%emt 0:00:00]} 13.
dxe4 {[%emt 0:00:00]} Qxd1 {[%emt 0:00:00]} 14. Rxd1 {[%emt 0:00:00]} Bxf3 {
[%emt 0:00:00]} 15. gxf3 {[%emt 0:00:00]} Bd6 {[%emt 0:00:00]} 16. Ng3 {
[%emt 0:00:00]} g6 {[%emt 0:00:00]} 17. Bh6 {[%emt 0:00:00]} Rfe8 {[%emt 0:00:
00]} 18. Nf1 {[%emt 0:00:00]} Nd8 {[%emt 0:00:00]} 19. Ne3 {[%emt 0:00:00]} Ne6
{[%emt 0:00:00]} 20. Bb3 {[%emt 0:00:00]} Nh5 {[%emt 0:00:00]} 21. a4 {[%emt 0:
00:00]} Rab8 {[%emt 0:00:00]} 22. axb5 {[%emt 0:00:00]} axb5 {[%emt 0:00:00]}
23. Kh2 {[%emt 0:00:00]} Nc5 {[%emt 0:00:00]} 24. Bd5 {[%emt 0:00:00]} b4 {
[%emt 0:00:00]} 25. Nc4 {[%emt 0:00:00]} Bf8 {[%emt 0:00:00]} 26. Bxf8 {
[%emt 0:00:00]} Kxf8 {[%emt 0:00:00]} 27. Ra7 {[%emt 0:00:00]} Re7 {[%emt 0:00:
00]} 28. Na5 {[%emt 0:00:00]} bxc3 {[%emt 0:00:00]} 29. bxc3 {[%emt 0:00:00]}
Rd7 {[%emt 0:00:00]} 30. Nc6 {[%emt 0:00:00]} Re8 {[%emt 0:00:00]} 31. Rb1 {
[%emt 0:00:00]} Nf4 {[%emt 0:00:00]} 32. Rb5 {[%emt 0:00:00]} Ncd3 {[%emt 0:00:
00]} 33. c4 {[%emt 0:00:00]} Kg7 {[%emt 0:00:00]} 34. Rbb7 {[%emt 0:00:00]} Rc8
{[%emt 0:00:00]} 35. Nb8 {[%emt 0:00:00]} Re7 {[%emt 0:00:00]} 36. Nc6 {
[%emt 0:00:00]} Rd7 {[%emt 0:00:00]} 37. Nb8 {[%emt 0:00:00]} Re7 {[%emt 0:00:
00]} 38. Na6 {[%emt 0:00:00]} h5 {[%emt 0:00:00]} 39. c5 {[%emt 0:00:00]} Kh6 {
[%emt 0:00:00]} 40. c6 {[%emt 0:00:00]} Ne6 {[%emt 0:00:00]} 41. Bxe6 {[%emt 0:
00:00]} Rxe6 {[%emt 0:00:00]} 42. Rb8 {[%emt 0:00:00]} Rxb8 {[%emt 0:00:00]}
43. Nxb8 {[%emt 0:00:00]} Rf6 {[%emt 0:00:00]} 44. Rxc7 {[%emt 0:00:00]} Rxf3 {
[%emt 0:00:00]} 45. Rd7 {[%emt 0:00:00]} Nf4 {[%emt 0:00:00]} 46. c7 {[%emt 0:
00:00]} Rxf2+ {[%emt 0:00:00]} 47. Kg1 {[%emt 0:00:00]} Rc2 {[%emt 0:00:00]}
48. Na6 {[%emt 0:00:00]} Ne6 {[%emt 0:00:00]} 49. Rxf7 {[%emt 0:00:00]} Kg5 {
[%emt 0:00:00]} 50. Re7 {[%emt 0:00:00]} Kf6 {[%emt 0:00:00]} 51. Re8 {[%emt 0:
00:00]} Nxc7 {[%emt 0:00:00]} 52. Rc8 {[%emt 0:00:00]} Rc6 {[%emt 0:00:00]} 53.
Nxc7 {[%emt 0:00:00]} Kg5 {[%emt 0:00:00]} 54. Kg2 {[%emt 0:00:00]} Kh4 {
[%emt 0:00:00]} 55. Rg8 {[%emt 0:00:00]} Rxc7 {[%emt 0:00:00]} 56. Rxg6 {
[%emt 0:00:00]} Rc2+ {[%emt 0:00:00]} 57. Kf3 {[%emt 0:00:00]} Rc3+ {[%emt 0:
00:00]} 58. Kf2 {[%emt 0:00:00]} Rc5 {[%emt 0:00:00]} 59. Kg2 {[%emt 0:00:00]}
Ra5 {[%emt 0:00:00]} 60. Rg7 {[%emt 0:00:00]} Ra1 {[%emt 0:00:00]} 61. Rg6 {
[%emt 0:00:00]} Re1 {[%emt 0:00:00]} 62. Kf3 {[%emt 0:00:00]} Rf1+ {[%emt 0:00:
00]} 63. Ke3 {[%emt 0:00:00]} Ra1 {[%emt 0:00:00]} 64. Kf3 {[%emt 0:00:00]} Ra2
{[%emt 0:00:00]} 65. Rg7 {[%emt 0:00:00]} Ra4 {[%emt 0:00:00]} 66. Rg8 {
[%emt 0:00:00]} Ra7 {[%emt 0:00:00]} 67. Kg2 {[%emt 0:00:00]} Ra3 {[%emt 0:00:
00]} 68. Re8 {[%emt 0:00:00]} Ra2+ {[%emt 0:00:00]} 69. Kf3 {[%emt 0:00:00]}
Ra5 {[%emt 0:00:00]} 70. Kg2 {[%emt 0:00:00]} Kg5 {[%emt 0:00:00]} 71. Rf8 {
[%emt 0:00:00]} 1/2-1/2